[Event "70th RUS-ch Women Higher League 2020"]
[Site "Sochi"]
[Date "2020.10.09"]
[Round "2.9"]
[White "Dordzhieva, Dinara"]
[Black "Bykova, Anastasia"]
[Result "1/2-1/2"]
[ECO "D11"]
[WhiteElo "2354"]
[BlackElo "2215"]
[Annotator "ChessBase"]
[PlyCount "114"]
[EventDate "2020.10.08"]
[EventType "swiss"]
[EventCountry "RUS"]
[SourceTitle "playchess.com"]
[Source "ChessBase"]
[SourceQuality "1"]
[TimeControl "40/5400+30:1800+30"]

1. d4 {[%emt 0:02:06]} d5 {[%emt 0:00:00]} 2. c4 {[%emt 0:00:17]} c6 {[%emt 0:00:00]} 3. Nf3 {[%emt 0:00:03]} Nf6 {[%emt 0:00:00]} 4. g3 {[%emt 0:00:03]} Bg4 {[%emt 0:00:00]} 5. Ne5 {[%emt 0:00:08]} Bf5 {[%emt 0:00:40]} 6. Qb3 {[%emt 0:00:21]} Qb6 {[%emt 0:02:15]} 7. cxd5 {[%emt 0:00:49]} Qxb3 {[%emt 0:03:06]} 8. axb3 {[%emt 0:00:52]} Nxd5 {[%emt 0:00:22]} 9. Bg2 {[%emt 0:00:58]} Nb4 {[%emt 0:05:44]} 10. O-O {[%emt 0:02:21]} e6 {[%emt 0:09:30]} 11. e4 {[%emt 0:08:46]} Bg6 {[%emt 0:00:17]} 12. Na3 {[%emt 0:00:10]} N8a6 {[%emt 0:12:52]} 13. Be3 {[%emt 0:11:14]} Rd8 {[%emt 0:05:59]} 14. Rfc1 {[%emt 0:01:55]} f6 {[%emt 0:12:25]} 15. Nxg6 {[%emt 0:01:24]} hxg6 {[%emt 0:00:05]} 16. Nc4 {[%emt 0:00:41]} Rd7 {[%emt 0:03:38]} 17. Bf1 {[%emt 0:04:24]} Kf7 {[%emt 0:02:07]} 18. Na5 {[%emt 0:24:12]} Nb8 {[%emt 0:01:08]} 19. Bf4 {[%emt 0:00:48]} Be7 {[%emt 0:00:30]} 20. h4 {[%emt 0:00:37]} b6 {[%emt 0:16:57]} 21. Nc4 {[%emt 0:18:27]} b5 {[%emt 0:06:47]} 22. Nd2 {[%emt 0:04:29]} Rxd4 {[%emt 0:00:51]} 23. Rxa7 {[%emt 0:01:04]} e5 {[%emt 0:06:27]} 24. Be3 {[%emt 0:00:57]} Rd7 {[%emt 0:00:15]} 25. Rxd7 {[%emt 0:03:48]} Nxd7 {[%emt 0:00:04]} 26. Bh3 {[%emt 0:01:53]} Nb8 {[%emt 0:05:11]} 27. Nf3 {[%emt 0:03:21]} Rd8 {[%emt 0:02:07]} 28. Ne1 {[%emt 0:00:04]} Nd7 {[%emt 0:03:25]} 29. f4 {[%emt 0:04:37]} exf4 {[%emt 0:00:23]} 30. gxf4 {[%emt 0:00:08]} Nf8 {[%emt 0:01:06]} 31. Kf1 {[%emt 0:00:57]} Ne6 {[%emt 0:00:38]} 32. Nf3 {[%emt 0:00:08]} Nxf4 {[%emt 0:00:33]} 33. Bxf4 {[%emt 0:02:12]} Nd3 {[%emt 0:00:02]} 34. Rxc6 {[%emt 0:01:37]} Nxf4 {[%emt 0:00:04]} 35. Bg4 {[%emt 0:00:04]} Rd1+ {[%emt 0:01:14]} 36. Kf2 {[%emt 0:00:05]} Rb1 {[%emt 0:00:19]} 37. Nd4 {[%emt 0:01:06]} Rxb2+ {[%emt 0:00:47]} 38. Kf3 {[%emt 0:00:42]} Nd3 {[%emt 0:00:22]} 39. Be6+ {[%emt 0:00:36]} Ke8 {[%emt 0:00:04]} 40. Ke3 {[%emt 0:00:00]} Ne5 {[%emt 0:00:00]} 41. Rc8+ {[%emt 0:02:09]} Bd8 {[%emt 0:03:22]} 42. Rb8 {[%emt 0:08:21]} b4 {[%emt 0:08:12]} 43. Bd5 {[%emt 0:03:40]} Kd7 {[%emt 0:02:21]} 44. Ne6 {[%emt 0:02:46]} Be7 {[%emt 0:03:24]} 45. Rb7+ {[%emt 0:00:30]} Kd6 {[%emt 0:00:25]} 46. Rxb4 {[%emt 0:03:06]} f5 {[%emt 0:02:53]} 47. Rb6+ {[%emt 0:03:44]} Kd7 {[%emt 0:00:02]} 48. Rb7+ {[%emt 0:03:18]} Kd6 {[%emt 0:00:13]} 49. Nxg7 {[%emt 0:00:52]} Bxh4 {[%emt 0:01:54]} 50. Kd4 {[%emt 0:04:51]} Nc6+ {[%emt 0:06:12]} 51. Kd3 {[%emt 0:00:18]} fxe4+ {[%emt 0:00:20]} 52. Bxe4 {[%emt 0:00:52]} Na5 {[%emt 0:04:36]} 53. Ne8+ {[%emt 0:01:05]} Ke6 {[%emt 0:01:03]} 54. Nc7+ {[%emt 0:01:00]} Kd7 {[%emt 0:01:34]} 55. Ra7 {[%emt 0:00:13]} Nc6 {[%emt 0:00:56]} 56. Rb7 {[%emt 0:01:07]} Na5 {[%emt 0:00:07]} 57. Ra7 {[%emt 0:01:00]} Nc6 {[%emt 0:00:05]} 1/2-1/2

[Event "70th RUS-ch Women Higher League 2020"]
[Site "Sochi"]
[Date "2020.10.09"]
[Round "2.10"]
[White "Garifullina, Leya"]
[Black "Mironenko, Galina"]
[Result "1/2-1/2"]
[ECO "C18"]
[WhiteElo "2335"]
[BlackElo "2061"]
[Annotator "ChessBase"]
[PlyCount "86"]
[EventDate "2020.10.08"]
[EventType "swiss"]
[EventCountry "RUS"]
[SourceTitle "playchess.com"]
[Source "ChessBase"]
[SourceQuality "1"]
[TimeControl "40/5400+30:1800+30"]

1. e4 {[%emt 0:00:00]} e6 {[%emt 0:00:00]} 2. d4 {[%emt 0:00:00]} d5 {[%emt 0:00:00]} 3. Nc3 {[%emt 0:00:00]} Bb4 {[%emt 0:00:00]} 4. e5 {[%emt 0:00:00]} c5 {[%emt 0:00:00]} 5. a3 {[%emt 0:00:00]} Bxc3+ {[%emt 0:00:00]} 6. bxc3 {[%emt 0:00:05]} Qa5 {[%emt 0:00:00]} 7. Bd2 {[%emt 0:00:08]} Qa4 {[%emt 0:00:05]} 8. Qg4 {[%emt 0:00:24]} Kf8 {[%emt 0:00:14]} 9. Qd1 {[%emt 0:00:16]} Ne7 {[%emt 0:00:26]} 10. Nf3 {[%emt 0:00:57]} b6 {[%emt 0:00:21]} 11. dxc5 {[%emt 0:04:02]} bxc5 {[%emt 0:01:50]} 12. c4 {[%emt 0:02:08]} Ba6 {[%emt 0:05:08]} 13. cxd5 {[%emt 0:00:48]} Bxf1 {[%emt 0:05:24]} 14. Kxf1 {[%emt 0:02:09]} Nxd5 {[%emt 0:02:00]} 15. c3 {[%emt 0:03:42]} Qxd1+ {[%emt 0:10:37]} 16. Rxd1 {[%emt 0:00:09]} Ke7 {[%emt 0:03:29]} 17. Ke2 {[%emt 0:04:02]} Nd7 {[%emt 0:04:23]} 18. Rb1 {[%emt 0:04:29]} Rab8 {[%emt 0:05:08]} 19. Kd3 {[%emt 0:02:40]} N5b6 {[%emt 0:03:53]} 20. Bg5+ {[%emt 0:07:06]} f6 {[%emt 0:01:48]} 21. Bf4 {[%emt 0:01:03]} Rbd8 {[%emt 0:04:12]} 22. Ke2 {[%emt 0:02:04]} Nd5 {[%emt 0:04:34]} 23. Bd2 {[%emt 0:00:28]} N7b6 {[%emt 0:06:19]} 24. Rhc1 {[%emt 0:10:07]} Nc4 {[%emt 0:03:07]} 25. g3 {[%emt 0:02:45]} Ndb6 {[%emt 0:05:05]} 26. Rb5 {[%emt 0:06:51]} Rd5 {[%emt 0:02:19]} 27. Be3 {[%emt 0:02:32]} Rc8 {[%emt 0:03:53]} 28. exf6+ {[%emt 0:01:23]} gxf6 {[%emt 0:00:38]} 29. Ne1 {[%emt 0:00:57]} Nxe3 {[%emt 0:05:47]} 30. Kxe3 {[%emt 0:00:42]} Nc4+ {[%emt 0:01:58]} 31. Kf3 {[%emt 0:01:21]} Rcd8 {[%emt 0:04:46]} 32. Kg2 {[%emt 0:02:57]} a6 {[%emt 0:03:07]} 33. Rb7+ {[%emt 0:00:26]} R8d7 {[%emt 0:00:39]} 34. Rcb1 {[%emt 0:01:31]} Rxb7 {[%emt 0:03:33]} 35. Rxb7+ {[%emt 0:00:03]} Rd7 {[%emt 0:00:16]} 36. Rb8 {[%emt 0:04:14]} Nxa3 {[%emt 0:03:14]} 37. Rh8 {[%emt 0:00:58]} Kd6 {[%emt 0:01:55]} 38. Ra8 {[%emt 0:00:09]} Nb1 {[%emt 0:03:31]} 39. Rxa6+ {[%emt 0:01:10]} Ke7 {[%emt 0:01:24]} 40. Rc6 {[%emt 0:00:00]} Nxc3 {[%emt 0:00:00]} 41. Rxc5 {[%emt 0:01:59]} Nd5 {[%emt 0:01:42]} 42. Rc2 {[%emt 0:00:15]} Rc7 {[%emt 0:01:13]} 43. Rxc7+ {[%emt 0:02:01]} Nxc7 {[%emt 0:00:08]} 1/2-1/2

[Event "70th RUS-ch Women Higher League 2020"]
[Site "Sochi"]
[Date "2020.10.09"]
[Round "2.11"]
[White "Solozhenkina, Elizaveta"]
[Black "Makarova, Olga"]
[Result "1-0"]
[ECO "C15"]
[WhiteElo "2301"]
[BlackElo "1875"]
[Annotator "ChessBase"]
[PlyCount "83"]
[EventDate "2020.10.08"]
[EventType "swiss"]
[EventCountry "RUS"]
[SourceTitle "playchess.com"]
[Source "ChessBase"]
[SourceQuality "1"]
[TimeControl "40/5400+30:1800+30"]

1. e4 {[%emt 0:00:12]} e6 {[%emt 0:03:03]} 2. d4 {[%emt 0:00:11]} d5 {[%emt 0:00:04]} 3. Nc3 {[%emt 0:00:07]} Bb4 {[%emt 0:00:09]} 4. exd5 {[%emt 0:07:23]} exd5 {[%emt 0:00:39]} 5. Bb5+ {[%emt 0:01:11]} c6 {[%emt 0:07:32]} 6. Bd3 {[%emt 0:00:15]} Ne7 {[%emt 0:02:57]} 7. h3 {[%emt 0:05:09]} Bf5 {[%emt 0:01:20]} 8. Nf3 {[%emt 0:01:40]} h6 {[%emt 0:08:55]} 9. O-O {[%emt 0:02:13]} O-O {[%emt 0:04:54]} 10. Bf4 {[%emt 0:06:45]} Bxd3 {[%emt 0:17:02]} 11. Qxd3 {[%emt 0:00:08]} Na6 {[%emt 0:01:11]} 12. Ne2 {[%emt 0:08:40]} Nc7 {[%emt 0:06:19]} 13. Ne5 {[%emt 0:01:11]} Bd6 {[%emt 0:03:49]} 14. Rae1 {[%emt 0:05:05]} Ne6 {[%emt 0:03:30]} 15. Bc1 {[%emt 0:04:16]} c5 {[%emt 0:03:26]} 16. c3 {[%emt 0:00:24]} Nc6 {[%emt 0:03:07]} 17. Nxc6 {[%emt 0:19:34]} bxc6 {[%emt 0:00:07]} 18. dxc5 {[%emt 0:00:17]} Bxc5 {[%emt 0:09:52]} 19. Ng3 {[%emt 0:00:56]} Re8 {[%emt 0:01:58]} 20. Qf3 {[%emt 0:02:27]} Be7 {[%emt 0:07:03]} 21. Qg4 {[%emt 0:06:59]} Kh8 {[%emt 0:02:20]} 22. Qh5 {[%emt 0:02:54]} Kg8 {[%emt 0:02:02]} 23. Bxh6 {[%emt 0:05:16]} g6 {[%emt 0:05:59]} 24. Qg4 {[%emt 0:01:39]} Bf8 {[%emt 0:01:03]} 25. Bc1 {[%emt 0:03:28]} Ng7 {[%emt 0:01:03]} 26. h4 {[%emt 0:02:52]} Qc8 {[%emt 0:01:51]} 27. Qf3 {[%emt 0:00:51]} Bd6 {[%emt 0:01:01]} 28. h5 {[%emt 0:08:15]} Rxe1 {[%emt 0:00:36]} 29. Rxe1 {[%emt 0:00:05]} Bxg3 {[%emt 0:00:37]} 30. hxg6 {[%emt 0:00:03]} Bxf2+ {[%emt 0:00:35]} 31. Qxf2 {[%emt 0:00:04]} fxg6 {[%emt 0:00:06]} 32. Qf6 {[%emt 0:03:08]} Qf5 {[%emt 0:01:12]} 33. Qxc6 {[%emt 0:00:04]} Rf8 {[%emt 0:00:06]} 34. Qc5 {[%emt 0:00:51]} Ne6 {[%emt 0:00:53]} 35. Qe3 {[%emt 0:00:32]} Rf6 {[%emt 0:00:30]} 36. Qe2 {[%emt 0:00:58]} Nc5 {[%emt 0:00:35]} 37. Be3 {[%emt 0:01:40]} Ne4 {[%emt 0:00:30]} 38. Bxa7 {[%emt 0:00:35]} Ng3 {[%emt 0:00:28]} 39. Qe8+ {[%emt 0:00:24]} Kh7 {[%emt 0:00:21]} 40. Re7+ {[%emt 0:00:00]} Kh6 {[%emt 0:00:00]} 41. Qh8+ {[%emt 0:00:39]} Kg5 {[%emt 0:00:13]} 42. Be3+ {[%emt 0:00:03]} 1-0

[Event "70th RUS-ch Women Higher League 2020"]
[Site "Sochi"]
[Date "2020.10.09"]
[Round "2.12"]
[White "Lysenko, Margarita"]
[Black "Goltseva, Ekaterina"]
[Result "1/2-1/2"]
[ECO "E29"]
[WhiteElo "2239"]
[BlackElo "2294"]
[Annotator "ChessBase"]
[PlyCount "143"]
[EventDate "2020.10.08"]
[EventType "swiss"]
[EventCountry "RUS"]
[SourceTitle "playchess.com"]
[Source "ChessBase"]
[SourceQuality "1"]
[TimeControl "40/5400+30:1800+30"]

1. d4 {[%emt 0:00:00]} Nf6 {[%emt 0:00:00]} 2. c4 {[%emt 0:00:19]} e6 {[%emt 0:00:27]} 3. Nc3 {[%emt 0:00:39]} Bb4 {[%emt 0:00:11]} 4. a3 {[%emt 0:01:01]} Bxc3+ {[%emt 0:04:39]} 5. bxc3 {[%emt 0:00:16]} c5 {[%emt 0:00:41]} 6. e3 {[%emt 0:01:11]} Nc6 {[%emt 0:01:04]} 7. Bd3 {[%emt 0:00:37]} O-O {[%emt 0:00:55]} 8. Ne2 {[%emt 0:01:07]} b6 {[%emt 0:01:07]} 9. e4 {[%emt 0:02:25]} Ne8 {[%emt 0:01:35]} 10. Be3 {[%emt 0:01:50]} Ba6 {[%emt 0:12:50]} 11. Ng3 {[%emt 0:21:57]} Na5 {[%emt 0:21:13]} 12. Qe2 {[%emt 0:07:17]} Rc8 {[%emt 0:20:39]} 13. d5 {[%emt 0:16:14]} f6 {[%emt 0:03:05]} 14. O-O {[%emt 0:06:25]} Nd6 {[%emt 0:08:32]} 15. e5 {[%emt 0:19:34]} fxe5 {[%emt 0:01:01]} 16. Qh5 {[%emt 0:02:31]} e4 {[%emt 0:06:32]} 17. Nxe4 {[%emt 0:01:13]} Nf5 {[%emt 0:01:23]} 18. dxe6 {[%emt 0:06:07]} dxe6 {[%emt 0:06:00]} 19. Rad1 {[%emt 0:01:24]} Qe8 {[%emt 0:01:44]} 20. Qe2 {[%emt 0:03:19]} Qc6 {[%emt 0:03:02]} 21. Ng5 {[%emt 0:01:02]} h6 {[%emt 0:00:14]} 22. Nh3 {[%emt 0:01:17]} Nd6 {[%emt 0:02:24]} 23. Qg4 {[%emt 0:01:29]} Nf5 {[%emt 0:00:20]} 24. Nf4 {[%emt 0:01:47]} Bxc4 {[%emt 0:00:51]} 25. Ng6 {[%emt 0:00:46]} Bxd3 {[%emt 0:00:29]} 26. Rxd3 {[%emt 0:00:26]} Rfd8 {[%emt 0:00:37]} 27. Rfd1 {[%emt 0:00:43]} Rxd3 {[%emt 0:00:34]} 28. Rxd3 {[%emt 0:00:02]} Qe8 {[%emt 0:00:15]} 29. h4 {[%emt 0:00:50]} Rd8 {[%emt 0:00:42]} 30. Rxd8 {[%emt 0:00:24]} Qxd8 {[%emt 0:00:02]} 31. Qe4 {[%emt 0:00:38]} Qd5 {[%emt 0:00:38]} 32. Qa4 {[%emt 0:00:27]} Qc6 {[%emt 0:01:04]} 33. Qf4 {[%emt 0:00:14]} Qd6 {[%emt 0:00:12]} 34. Qa4 {[%emt 0:00:41]} Nc6 {[%emt 0:00:41]} 35. h5 {[%emt 0:00:42]} Kh7 {[%emt 0:00:52]} 36. Qc2 {[%emt 0:00:32]} Kg8 {[%emt 0:00:23]} 37. Bf4 {[%emt 0:00:14]} Qd5 {[%emt 0:00:29]} 38. Qe2 {[%emt 0:00:36]} Nce7 {[%emt 0:00:27]} 39. Ne5 {[%emt 0:00:33]} Nc6 {[%emt 0:00:32]} 40. Ng6 {[%emt 0:00:00]} Nfe7 {[%emt 0:00:00]} 41. Nxe7+ {[%emt 0:11:16]} Nxe7 {[%emt 0:00:55]} 42. g4 {[%emt 0:02:05]} Nc6 {[%emt 0:02:25]} 43. Kh2 {[%emt 0:05:21]} c4 {[%emt 0:06:05]} 44. Bg3 {[%emt 0:01:42]} Kf7 {[%emt 0:04:41]} 45. Qe3 {[%emt 0:00:28]} e5 {[%emt 0:01:08]} 46. g5 {[%emt 0:10:07]} Qd3 {[%emt 0:04:24]} 47. Qc1 {[%emt 0:01:56]} Qe2 {[%emt 0:02:18]} 48. Kg1 {[%emt 0:00:46]} Qxh5 {[%emt 0:02:28]} 49. Qd2 {[%emt 0:00:16]} Ke6 {[%emt 0:02:50]} 50. gxh6 {[%emt 0:00:10]} Qxh6 {[%emt 0:03:01]} 51. Qc2 {[%emt 0:01:03]} Kd6 {[%emt 0:01:55]} 52. a4 {[%emt 0:01:12]} Kc7 {[%emt 0:01:27]} 53. Kg2 {[%emt 0:00:35]} Qe6 {[%emt 0:01:21]} 54. Qe4 {[%emt 0:00:35]} Kd6 {[%emt 0:00:27]} 55. Kg1 {[%emt 0:00:28]} g5 {[%emt 0:01:22]} 56. Qh7 {[%emt 0:00:27]} Ne7 {[%emt 0:01:14]} 57. Qh8 {[%emt 0:00:29]} Nc6 {[%emt 0:00:50]} 58. Qg7 {[%emt 0:00:32]} Kd5 {[%emt 0:00:33]} 59. Qxg5 {[%emt 0:00:18]} Kd6 {[%emt 0:01:06]} 60. Qg7 {[%emt 0:00:21]} Qd5 {[%emt 0:00:24]} 61. Qf8+ {[%emt 0:00:27]} Kc7 {[%emt 0:00:19]} 62. Qg7+ {[%emt 0:00:15]} Kc8 {[%emt 0:00:19]} 63. Kh2 {[%emt 0:00:38]} Qe4 {[%emt 0:00:47]} 64. Qf7 {[%emt 0:00:39]} Kb8 {[%emt 0:00:29]} 65. Qd7 {[%emt 0:00:49]} a6 {[%emt 0:00:26]} 66. Qd6+ {[%emt 0:00:37]} Kc8 {[%emt 0:00:42]} 67. Qe6+ {[%emt 0:00:17]} Kc7 {[%emt 0:00:10]} 68. Qf7+ {[%emt 0:00:30]} Kd6 {[%emt 0:00:41]} 69. Qf6+ {[%emt 0:00:44]} Kd7 {[%emt 0:00:32]} 70. Qg7+ {[%emt 0:00:16]} Kd6 {[%emt 0:00:33]} 71. Qf6+ {[%emt 0:00:10]} Kd7 {[%emt 0:00:26]} 72. Qg7+ {[%emt 0:00:07]} 1/2-1/2

[Event "70th RUS-ch Women Higher League 2020"]
[Site "Sochi"]
[Date "2020.10.09"]
[Round "2.13"]
[White "Semenova, Elena"]
[Black "Garmash, Aliona"]
[Result "1-0"]
[ECO "B09"]
[WhiteElo "2284"]
[BlackElo "2093"]
[Annotator "ChessBase"]
[PlyCount "85"]
[EventDate "2020.10.08"]
[EventType "swiss"]
[EventCountry "RUS"]
[SourceTitle "playchess.com"]
[Source "ChessBase"]
[SourceQuality "1"]
[TimeControl "40/5400+30:1800+30"]

1. e4 {[%emt 0:00:00]} g6 {[%emt 0:00:00]} 2. d4 {[%emt 0:00:00]} Bg7 {[%emt 0:00:00]} 3. Nc3 {[%emt 0:00:00]} d6 {[%emt 0:00:00]} 4. f4 {[%emt 0:00:00]} Nf6 {[%emt 0:00:00]} 5. Nf3 {[%emt 0:00:12]} O-O {[%emt 0:00:04]} 6. e5 {[%emt 0:00:12]} Nfd7 {[%emt 0:00:09]} 7. Bc4 {[%emt 0:00:22]} Nb6 {[%emt 0:00:11]} 8. Bb3 {[%emt 0:00:10]} Nc6 {[%emt 0:00:12]} 9. a4 {[%emt 0:00:46]} a5 {[%emt 0:00:32]} 10. O-O {[%emt 0:05:11]} Nb4 {[%emt 0:00:38]} 11. h3 {[%emt 0:06:22]} c6 {[%emt 0:13:55]} 12. Qe2 {[%emt 0:08:05]} N4d5 {[%emt 0:03:48]} 13. Ne4 {[%emt 0:03:17]} Kh8 {[%emt 0:09:25]} 14. Bd2 {[%emt 0:03:19]} f6 {[%emt 0:06:16]} 15. Rad1 {[%emt 0:10:20]} Be6 {[%emt 0:04:30]} 16. Ng3 {[%emt 0:15:08]} Qd7 {[%emt 0:11:49]} 17. c4 {[%emt 0:07:35]} Nc7 {[%emt 0:01:18]} 18. Be3 {[%emt 0:03:57]} Ra6 {[%emt 0:10:29]} 19. Ba2 {[%emt 0:03:33]} Bg8 {[%emt 0:17:07]} 20. b3 {[%emt 0:01:52]} Be6 {[%emt 0:08:11]} 21. Bb1 {[%emt 0:00:37]} Nc8 {[%emt 0:02:11]} 22. exf6 {[%emt 0:11:31]} exf6 {[%emt 0:03:34]} 23. f5 {[%emt 0:01:18]} gxf5 {[%emt 0:01:03]} 24. Nh4 {[%emt 0:00:49]} Ne7 {[%emt 0:00:19]} 25. Ngxf5 {[%emt 0:01:55]} Nxf5 {[%emt 0:01:10]} 26. Nxf5 {[%emt 0:01:01]} Raa8 {[%emt 0:01:50]} 27. Qd3 {[%emt 0:03:28]} Bg8 {[%emt 0:02:00]} 28. Bf4 {[%emt 0:01:28]} d5 {[%emt 0:01:04]} 29. c5 {[%emt 0:04:26]} Ne6 {[%emt 0:00:22]} 30. Bd6 {[%emt 0:00:57]} Rf7 {[%emt 0:00:59]} 31. h4 {[%emt 0:00:56]} Bf8 {[%emt 0:00:30]} 32. Rf3 {[%emt 0:02:20]} b6 {[%emt 0:01:29]} 33. Bxf8 {[%emt 0:01:13]} Raxf8 {[%emt 0:00:06]} 34. cxb6 {[%emt 0:00:30]} Qd8 {[%emt 0:00:37]} 35. Re1 {[%emt 0:01:01]} Rb7 {[%emt 0:00:31]} 36. Rg3 {[%emt 0:01:01]} Nf4 {[%emt 0:01:02]} 37. Qf3 {[%emt 0:01:28]} Ng6 {[%emt 0:00:33]} 38. h5 {[%emt 0:00:55]} Ne7 {[%emt 0:00:11]} 39. Rg7 {[%emt 0:01:33]} Nxf5 {[%emt 0:00:54]} 40. Rxb7 {[%emt 0:00:00]} Nd6 {[%emt 0:00:00]} 41. Rc7 {[%emt 0:02:33]} f5 {[%emt 0:04:27]} 42. Qg3 {[%emt 0:03:10]} Qf6 {[%emt 0:02:08]} 43. Qe5 {[%emt 0:00:45]} 1-0

[Event "70th RUS-ch Women Higher League 2020"]
[Site "Sochi"]
[Date "2020.10.09"]
[Round "2.14"]
[White "Bodnaruk, Anastasia"]
[Black "Paramzina, Anastasya"]
[Result "1/2-1/2"]
[ECO "B90"]
[WhiteElo "2428"]
[BlackElo "2237"]
[Annotator "ChessBase"]
[PlyCount "143"]
[EventDate "2020.10.08"]
[EventType "swiss"]
[EventCountry "RUS"]
[SourceTitle "playchess.com"]
[Source "ChessBase"]
[SourceQuality "1"]
[TimeControl "40/5400+30:1800+30"]

1. e4 {[%emt 0:00:00]} c5 {[%emt 0:02:00]} 2. Nf3 {[%emt 0:00:00]} d6 {[%emt 0:00:04]} 3. d4 {[%emt 0:00:00]} cxd4 {[%emt 0:00:03]} 4. Nxd4 {[%emt 0:00:00]} Nf6 {[%emt 0:00:05]} 5. Nc3 {[%emt 0:00:00]} a6 {[%emt 0:00:03]} 6. h3 {[%emt 0:00:07]} e5 {[%emt 0:00:30]} 7. Nde2 {[%emt 0:00:17]} h5 {[%emt 0:00:12]} 8. g3 {[%emt 0:01:48]} Be7 {[%emt 0:01:38]} 9. Bg2 {[%emt 0:02:34]} Be6 {[%emt 0:05:27]} 10. a4 {[%emt 0:04:54]} O-O {[%emt 0:01:27]} 11. O-O {[%emt 0:01:53]} Nbd7 {[%emt 0:05:25]} 12. Be3 {[%emt 0:04:03]} Rc8 {[%emt 0:03:50]} 13. b3 {[%emt 0:17:02]} Nc5 {[%emt 0:16:09]} 14. Bg5 {[%emt 0:16:41]} Nh7 {[%emt 0:19:16]} 15. Bxe7 {[%emt 0:01:04]} Qxe7 {[%emt 0:00:04]} 16. f4 {[%emt 0:09:53]} f5 {[%emt 0:00:48]} 17. exf5 {[%emt 0:10:09]} Bxf5 {[%emt 0:00:56]} 18. Nd5 {[%emt 0:00:03]} Qe8 {[%emt 0:01:00]} 19. Ne3 {[%emt 0:04:12]} Be4 {[%emt 0:26:53]} 20. Bxe4 {[%emt 0:09:59]} Nxe4 {[%emt 0:00:08]} 21. Qd5+ {[%emt 0:00:03]} Rf7 {[%emt 0:01:45]} 22. fxe5 {[%emt 0:13:30]} Nef6 {[%emt 0:01:03]} 23. Qxd6 {[%emt 0:00:06]} Rd7 {[%emt 0:01:39]} 24. Qb6 {[%emt 0:00:40]} Qxe5 {[%emt 0:00:22]} 25. Nf4 {[%emt 0:01:44]} Ng5 {[%emt 0:03:49]} 26. Rae1 {[%emt 0:01:38]} Nxh3+ {[%emt 0:01:54]} 27. Nxh3 {[%emt 0:00:34]} Qxg3+ {[%emt 0:00:10]} 28. Ng2 {[%emt 0:00:00]} Qxh3 {[%emt 0:02:04]} 29. Re3 {[%emt 0:00:31]} Qg4 {[%emt 0:00:24]} 30. c4 {[%emt 0:01:02]} Kh7 {[%emt 0:03:38]} 31. Qe6 {[%emt 0:00:29]} Qxe6 {[%emt 0:00:28]} 32. Rxe6 {[%emt 0:00:01]} Rc5 {[%emt 0:00:11]} 33. Rfe1 {[%emt 0:01:00]} Rg5 {[%emt 0:00:41]} 34. R6e5 {[%emt 0:00:27]} Rg6 {[%emt 0:00:53]} 35. Kf1 {[%emt 0:00:24]} Rd4 {[%emt 0:00:36]} 36. Rf5 {[%emt 0:00:39]} h4 {[%emt 0:00:56]} 37. Re3 {[%emt 0:00:27]} Rd1+ {[%emt 0:01:05]} 38. Ke2 {[%emt 0:00:33]} Rh1 {[%emt 0:00:12]} 39. Nf4 {[%emt 0:00:14]} Rgg1 {[%emt 0:00:14]} 40. Kd2 {[%emt 0:00:00]} Rh2+ {[%emt 0:00:00]} 41. Ne2 {[%emt 0:04:00]} Rg4 {[%emt 0:15:08]} 42. Kd3 {[%emt 0:02:39]} Rh1 {[%emt 0:00:23]} 43. Rff3 {[%emt 0:02:11]} Rd1+ {[%emt 0:04:04]} 44. Kc2 {[%emt 0:00:26]} Rd8 {[%emt 0:01:53]} 45. Nf4 {[%emt 0:02:41]} Re8 {[%emt 0:00:29]} 46. Rd3 {[%emt 0:05:11]} Re1 {[%emt 0:04:17]} 47. a5 {[%emt 0:04:38]} Rgg1 {[%emt 0:05:39]} 48. Kb2 {[%emt 0:01:38]} Rd1 {[%emt 0:00:35]} 49. Rxd1 {[%emt 0:02:05]} Rxd1 {[%emt 0:00:10]} 50. Nh3 {[%emt 0:00:35]} Rd4 {[%emt 0:01:44]} 51. Nf2 {[%emt 0:02:49]} Rd2+ {[%emt 0:00:40]} 52. Ka3 {[%emt 0:00:09]} Kg6 {[%emt 0:00:35]} 53. b4 {[%emt 0:00:46]} Rd4 {[%emt 0:01:07]} 54. Kb3 {[%emt 0:03:42]} Ne4 {[%emt 0:00:07]} 55. Nxe4 {[%emt 0:00:14]} Rxe4 {[%emt 0:00:04]} 56. b5 {[%emt 0:00:05]} axb5 {[%emt 0:00:35]} 57. cxb5 {[%emt 0:00:01]} Re7 {[%emt 0:00:38]} 58. b6 {[%emt 0:02:35]} Kh5 {[%emt 0:00:54]} 59. Rc3 {[%emt 0:00:12]} Re5 {[%emt 0:01:06]} 60. Ka4 {[%emt 0:00:35]} Re4+ {[%emt 0:00:13]} 61. Kb5 {[%emt 0:00:20]} Re5+ {[%emt 0:00:03]} 62. Ka4 {[%emt 0:00:17]} Re4+ {[%emt 0:00:05]} 63. Kb5 {[%emt 0:00:08]} Re5+ {[%emt 0:01:06]} 64. Rc5 {[%emt 0:02:02]} Rxc5+ {[%emt 0:01:22]} 65. Kxc5 {[%emt 0:00:01]} h3 {[%emt 0:00:09]} 66. a6 {[%emt 0:00:01]} h2 {[%emt 0:00:04]} 67. axb7 {[%emt 0:00:09]} h1=Q {[%emt 0:00:04]} 68. b8=Q {[%emt 0:00:04]} Qc1+ {[%emt 0:00:20]} 69. Kb5 {[%emt 0:00:14]} Qb1+ {[%emt 0:01:01]} 70. Kc6 {[%emt 0:00:41]} Qe4+ {[%emt 0:00:06]} 71. Kd7 {[%emt 0:01:08]} Qf5+ {[%emt 0:00:18]} 72. Kc6 {[%emt 0:01:22]} 1/2-1/2